bitfinex/quotes_SOLUSD_20240605
["timestamp","ask_amount","ask_price","bid_price","bid_amount"]
[1717600594318,7.22,173.33,173.27,7.39]
[1717600595222,7.22,173.32,173.27,0.17]
[1717600595622,7.22,173.33,173.27,14.2243]
[1717600595822,7.22,173.33,173.27,14.0543]
[1717600596246,7.22,173.33,173.27,6.8343]
[1717600597325,6.40139757,173.34,173.27,6.8343]
[1717600597528,6.40139757,173.34,173.3,5.78]
[1717600598030,0.4,173.34,173.3,13.0]
[1717600598341,0.4,173.34,173.3,7.22]
[1717600598553,0.4,173.34,173.3,13.6862]
[1717600598841,0.4,173.34,173.31,7.22]
[1717600599027,0.4,173.34,173.31,6.5412]
[1717600599442,0.4,173.34,173.3,7.22]
[1717600600437,0.4,173.34,173.29,6.3903]
[1717600600656,0.4,173.34,173.3,13.2703]
[1717600600960,0.4,173.34,173.31,7.56]
[1717600601139,0.4,173.34,173.3,13.2703]
[1717600601342,0.4,173.34,173.31,7.22]
[1717600601932,0.4,173.34,173.3,13.2703]
[1717600602247,0.4,173.34,173.31,7.56]
[1717600602459,0.4,173.34,173.31,14.1278]
[1717600602951,0.4,173.34,173.33,13.7574]
[1717600603249,7.22,173.4,173.33,13.7574]
[1717600603457,7.22,173.4,173.34,7.22]
[1717600603853,0.4,173.44,173.33,34.78]
[1717600604052,0.4,173.44,173.34,74.1699]
[1717600604232,0.4,173.44,173.41,7.22]
[1717600604428,0.4,173.44,173.37,5.764]
[1717600604429,0.4,173.44,173.4,7.22]
[1717600605247,0.4,173.44,173.39,0.34]
[1717600605450,0.4,173.44,173.4,7.22]
[1717600605752,0.4,173.44,173.41,0.34]
[1717600606340,0.4,173.44,173.4,6.2961]
[1717600606743,0.4,173.44,173.39,0.17]
[1717600606934,0.4,173.44,173.38,5.764]
[1717600607539,0.4,173.44,173.37,0.17]
[1717600607754,0.4,173.44,173.36,20.17]
[1717600608947,0.4,173.44,173.37,0.17]
[1717600609640,0.4,173.44,173.37,34.78]
[1717600609843,0.4,173.44,173.38,0.17]
[1717600610171,0.4,173.44,173.38,5.934]
[1717600610368,0.4,173.44,173.4,6.5513]
[1717600610658,0.4,173.44,173.41,0.34]
[1717600613058,0.4,173.44,173.4,6.5513]
[1717600613059,0.4,173.44,173.36,30.35545248]
[1717600614263,0.4,173.44,173.37,0.17]
[1717600614435,0.4,173.44,173.37,0.34]
[1717600615761,0.4,173.44,173.37,1.76640936]
[1717600616441,0.4,173.44,173.37,0.34]
[1717600620940,0.4,173.44,173.37,13.04821341]
[1717600621140,0.4,173.44,173.38,12.70821341]
[1717600621340,0.4,173.44,173.39,6.3947]
[1717600621643,0.4,173.44,173.39,0.34]
[1717600621843,0.4,173.44,173.41,6.0547]
[1717600623141,0.8166447,173.46,173.42,0.34]
[1717600623772,0.8166447,173.46,173.43,6.0103]
[1717600624281,0.8166447,173.46,173.45,6.1649]
[1717600624574,0.4,173.54,173.45,19.21311341]
[1717600624779,0.4,173.54,173.46,7.28421341]
[1717600625851,0.4,173.54,173.46,60.39235448]
[1717600626051,0.4,173.54,173.48,5.764]
[1717600626347,0.4,173.54,173.49,13.56144458]
[1717600626665,0.4,173.54,173.5,6.318]
[1717600626843,0.4,173.54,173.51,7.38532452]
[1717600627045,0.4,173.54,173.51,13.71132452]
[1717600627254,0.4,173.54,173.52,12.58156451]
[1717600627450,0.4,173.54,173.53,0.17]
[1717600627650,0.4,173.54,173.53,0.34]
[1717600628253,0.4,173.54,173.53,32.1137]
[1717600628445,0.4,173.54,173.53,38.69483063]
[1717600629258,0.4,173.54,173.53,32.68513063]
[1717600629862,0.4,173.54,173.53,39.21653063]
[1717600630067,0.4,173.54,173.53,73.82653063]
[1717600633365,0.03596824,173.6,173.53,73.82653063]
[1717600633955,7.09638274,173.63,173.55,5.764]
[1717600634174,7.09638274,173.63,173.56,20.0]
[1717600634979,7.09638274,173.63,173.54,20.0]
[1717600635179,7.09638274,173.63,173.48,6.3846]
[1717600635371,18.003,173.62,173.48,6.3846]
[1717600635686,15.872,173.62,173.48,6.3846]
[1717600636083,15.872,173.62,173.49,5.764]
[1717600636663,15.872,173.62,173.49,40.374]
[1717600637260,15.872,173.62,173.47,13.01510983]
[1717600637466,15.872,173.62,173.48,40.374]
[1717600637964,15.872,173.62,173.48,57.704]
[1717600638167,15.872,173.62,173.48,40.374]
[1717600638670,15.872,173.62,173.49,0.17]
[1717600638870,15.872,173.62,173.5,40.374]
[1717600639183,15.872,173.62,173.51,20.34]
[1717600639861,15.872,173.62,173.51,54.95]
[1717600640262,15.872,173.62,173.52,40.374]
[1717600640579,15.872,173.62,173.53,26.104]
[1717600641571,0.73538274,173.63,173.53,26.104]
[1717600642187,0.73538274,173.63,173.53,60.714]
[1717600643185,0.73538274,173.63,173.55,40.374]
[1717600643506,0.73538274,173.63,173.58,5.764]
[1717600643693,0.73538274,173.63,173.59,26.104]
[1717600646393,0.73538274,173.63,173.59,20.0]
[1717600646690,0.73538274,173.63,173.57,5.764]
[1717600646991,0.73538274,173.63,173.58,20.0]
[1717600647671,0.73538274,173.63,173.59,0.17]
[1717600647881,0.73538274,173.63,173.59,0.34]
[1717600649992,23.1286,173.62,173.58,20.0]
[1717600650182,23.1286,173.62,173.56,4.5485893]
[1717600650386,0.73538274,173.63,173.54,54.61]
[1717600651096,0.73538274,173.63,173.54,20.0]
[1717600651671,0.73538274,173.63,173.53,5.764]
[1717600652489,0.73538274,173.63,173.53,10.33035743]
[1717600653207,0.73538274,173.63,173.55,21.54]
[1717600653379,0.73538274,173.63,173.56,0.34]
[1717600653581,0.73538274,173.63,173.57,34.61]
[1717600653880,0.73538274,173.63,173.58,20.34]
[1717600654080,0.73538274,173.63,173.58,20.17]
[1717600654396,0.73538274,173.63,173.59,0.17]
[1717600654574,0.73538274,173.63,173.59,20.0]
[1717600654777,0.73538274,173.63,173.6,0.17]
[1717600655393,0.73538274,173.63,173.59,0.34]
[1717600655699,0.73538274,173.63,173.6,0.17]
[1717600656021,0.73538274,173.63,173.59,0.17]
[1717600657701,7.03788274,173.63,173.59,0.17]
[1717600658277,0.73538274,173.63,173.59,0.17]
[1717600658478,0.73538274,173.63,173.58,20.0]
[1717600658778,0.73538274,173.63,173.57,20.0]
[1717600660295,0.73538274,173.63,173.58,0.34]
[1717600660885,0.4,173.64,173.59,6.2239]
[1717600661083,0.4,173.64,173.6,20.34]
[1717600661284,0.4,173.64,173.61,0.17]
[1717600661479,0.4,173.64,173.61,0.34]
[1717600661683,0.4,173.64,173.59,20.0]
[1717600661904,0.4,173.64,173.6,0.34]
[1717600664200,0.4,173.64,173.6,28.82946396]
[1717600664414,0.4,173.64,173.61,20.0]
[1717600670813,0.4,173.64,173.62,0.34]
[1717600671209,0.4,173.64,173.61,20.0]
[1717600671921,0.4,173.64,173.62,7.16]
[1717600672115,0.4,173.64,173.63,7.16]
[1717600676122,22.9767,173.73,173.63,7.16]
[1717600676320,22.9767,173.73,173.66,7.16]
[1717600676528,15.6452,173.72,173.68,7.16]
[1717600676829,6.1307,173.71,173.68,7.16]
[1717600678338,6.1307,173.71,173.61,89.014]
[1717600678512,6.1307,173.71,173.68,7.16]
[1717600678714,6.1307,173.71,173.69,7.16]
[1717600679932,6.1307,173.71,173.63,34.61]
[1717600680117,21.4441,173.71,173.67,7.16]
[1717600680318,0.4,173.74,173.68,7.16]
[1717600681516,22.0065,173.73,173.69,7.16]
[1717600682740,22.0065,173.73,173.7,7.16]
[1717600683817,22.0065,173.73,173.69,7.16]
[1717600684017,22.9903,173.73,173.63,6.94946396]
[1717600684213,30.1503,173.73,173.67,7.16]
[1717600684437,22.9903,173.73,173.67,7.16]
[1717600684638,6.4022,173.71,173.68,7.16]
[1717600685131,22.4352,173.71,173.64,20.0]
[1717600685340,22.4352,173.71,173.67,7.16]
[1717600685720,22.7502,173.7,173.64,20.0]
[1717600685921,7.16,173.65,173.6,15.6452]
[1717600686135,22.7502,173.69,173.6,15.6452]
[1717600686330,29.9503,173.7,173.64,7.16]
[1717600686520,22.7903,173.7,173.64,7.16]
[1717600686717,22.7903,173.7,173.57,4.60964742]
[1717600686718,22.7903,173.7,173.65,7.16]
[1717600686931,6.3372,173.7,173.61,41.77]
[1717600687241,23.1903,173.74,173.67,7.16]
[1717600687445,30.3503,173.74,173.67,7.16]
[1717600687620,7.16,173.73,173.67,7.16]
[1717600687821,7.16,173.73,173.66,7.16]
[1717600688127,23.1903,173.74,173.67,20.0]
[1717600688520,23.1903,173.74,173.67,27.16]
[1717600688834,23.1903,173.74,173.68,7.16]
[1717600689028,30.3503,173.74,173.68,7.16]
[1717600689230,23.1903,173.74,173.67,20.0]
[1717600689451,30.3503,173.74,173.68,7.16]
[1717600689647,23.1903,173.74,173.68,7.16]
[1717600689958,0.4,173.74,173.69,27.16]
[1717600690121,0.4,173.74,173.63,60.374]
[1717600690320,7.56,173.74,173.68,7.16]
[1717600690627,14.0418,173.74,173.69,20.0]
[1717600691249,29.2099,173.73,173.64,0.34]
[1717600691554,29.2099,173.73,173.66,7.16]
[1717600691726,29.2099,173.73,173.67,20.0]
[1717600693246,22.0499,173.73,173.67,20.0]
[1717600693448,22.0499,173.73,173.67,27.16]
[1717600693923,22.0499,173.73,173.67,7.16]
[1717600694326,6.4818,173.73,173.67,7.16]
[1717600694553,0.4,173.74,173.67,7.16]
[1717600694842,7.56,173.74,173.68,7.16]
[1717600695367,0.4,173.74,173.68,7.16]
[1717600695659,7.56,173.74,173.68,7.16]
[1717600696151,0.4,173.74,173.68,7.16]
[1717600696362,7.56,173.74,173.68,7.16]
[1717600697068,7.16,173.72,173.66,7.16]
[1717600697228,0.4,173.74,173.67,20.0]
[1717600697424,0.4,173.74,173.68,7.16]
[1717600697627,7.56,173.74,173.67,20.0]
[1717600697838,7.56,173.74,173.68,7.16]
[1717600698126,0.4,173.74,173.68,7.16]
[1717600698735,0.4,173.74,173.69,7.16]
[1717600698930,0.4,173.74,173.69,12.924]
[1717600699135,0.4,173.74,173.68,7.16]
[1717600699551,7.56,173.74,173.68,7.16]
[1717600700226,7.56,173.74,173.63,34.61]
[1717600700424,7.56,173.74,173.68,7.16]
[1717600701250,0.4,173.74,173.68,7.16]
[1717600701437,0.4,173.74,173.62,20.0]
[1717600701638,7.16,173.71,173.64,7.16]
[1717600702350,7.16,173.7,173.63,7.16]
[1717600702550,7.16,173.7,173.57,654.71516973]
[1717600702551,7.16,173.7,173.64,7.16]
[1717600702969,7.16,173.7,173.59,5.764]
[1717600703129,7.16,173.7,173.63,7.16]
[1717600703325,6.4861,173.68,173.64,20.0]
[1717600703572,13.6461,173.68,173.57,389.44077057]
[1717600703742,6.4861,173.68,173.64,7.16]
[1717600703944,6.6663,173.72,173.61,7.16]
[1717600704149,6.6663,173.72,173.68,7.16]
[1717600704543,6.6663,173.72,173.67,7.16]
[1717600704749,6.6663,173.72,173.61,436.78]
[1717600704949,6.6663,173.72,173.67,7.16]
[1717600705744,0.4,173.74,173.68,7.16]
[1717600705944,7.56,173.74,173.68,7.16]
[1717600706239,7.16,173.73,173.62,385.24]
[1717600706429,7.16,173.73,173.67,7.16]
[1717600706635,7.16,173.73,173.66,7.16]
[1717600706835,7.16,173.73,173.67,20.0]
[1717600707460,0.4,173.74,173.68,7.16]
[1717600707634,6.154,173.73,173.68,7.16]
[1717600707834,6.154,173.73,173.67,7.16]
[1717600708056,6.154,173.73,173.68,7.16]
[1717600708446,6.154,173.73,173.69,7.16]
[1717600708840,0.4,173.74,173.69,7.16]
[1717600709144,0.4,173.74,173.7,7.16]
[1717600711044,0.4,173.74,173.65,57.644]
[1717600711258,0.4,173.74,173.71,7.16]
[1717600712564,0.4,173.74,173.7,7.16]
[1717600712768,0.4,173.74,173.71,20.0]
[1717600713363,0.4,173.74,173.71,27.16]
[1717600717775,0.4,173.74,173.72,12.924]
[1717600717956,0.4,173.74,173.72,7.16]
[1717600718156,22.6711,173.74,173.71,20.0]
[1717600718356,6.5714,173.74,173.71,7.16]
[1717600718679,0.4,173.74,173.71,7.16]
[1717600719073,0.4,173.74,173.7,7.16]
[1717600719273,0.4,173.74,173.71,20.0]
[1717600719979,0.4,173.74,173.72,7.16]
[1717600720184,0.4,173.74,173.71,27.16]
[1717600722269,0.4,173.74,173.71,20.0]
[1717600722461,0.4,173.74,173.7,7.16]
[1717600722659,0.4,173.74,173.67,20.0]
[1717600722864,0.4,173.74,173.68,7.16]
[1717600723066,21.6137,173.73,173.67,20.0]
[1717600723270,28.7737,173.73,173.66,7.16]
[1717600723470,28.7737,173.73,173.64,417.91898499]
[1717600723788,7.16,173.71,173.64,417.91898499]
[1717600723972,7.16,173.71,173.65,7.16]
[1717600724175,0.4,173.74,173.66,7.16]
[1717600724176,29.2456,173.72,173.66,7.16]
[1717600725383,29.2456,173.72,173.64,413.3025722]
[1717600725587,22.0856,173.72,173.66,7.16]
[1717600725891,29.2456,173.72,173.66,7.16]
[1717600726091,29.2456,173.72,173.65,7.16]
[1717600727984,22.0856,173.72,173.62,28.47150881]
[1717600728196,0.4,173.74,173.7,35.92318119]
[1717600728493,0.4,173.74,173.66,28.73364079]
[1717600728667,22.5164,173.74,173.7,28.76318119]
[1717600728867,22.5164,173.74,173.69,28.81081758]
[1717600728868,22.1164,173.72,173.69,28.81081758]
[1717600729068,6.6173,173.72,173.69,28.81081758]
[1717600729261,22.5164,173.74,173.69,28.81081758]
[1717600730368,22.5164,173.74,173.7,28.76318119]
[1717600730768,7.0173,173.74,173.7,35.92318119]
[1717600730983,0.4,173.74,173.7,35.92318119]
[1717600731200,0.4,173.74,173.7,28.76318119]
[1717600733889,0.4,173.74,173.67,33.92774708]
[1717600734077,0.4,173.74,173.71,28.13502708]
[1717600737285,0.4,173.74,173.67,28.16374708]
[1717600737493,0.4,173.74,173.7,35.92318119]
[1717600737700,0.4,173.74,173.71,35.29502708]
[1717600737898,0.4,173.74,173.71,28.13502708]
[1717600738696,23.2224,173.74,173.67,28.16374708]
[1717600738903,23.2224,173.74,173.7,28.76318119]
[1717600739112,16.5906,173.74,173.67,28.16374708]
[1717600739288,21.2818,173.73,173.69,28.81081758]
[1717600739481,21.2818,173.73,173.7,28.76318119]
[1717600739794,0.4,173.74,173.64,28.4025722]
[1717600740003,0.4,173.74,173.73,28.71238537]
[1717600740326,0.4,173.74,173.65,54.61]
[1717600740327,7.16,173.8,173.67,34.61]
[1717600740489,2.9454447,173.81,173.68,25.764]
[1717600740684,7.16,173.76,173.7,5.764]
[1717600740892,7.16,173.75,173.7,5.764]
[1717600741185,0.8166447,173.81,173.7,7.16]
[1717600741397,7.16,173.76,173.7,7.16]
[1717600741596,7.16,173.76,173.64,34.61]
[1717600741903,7.16,173.76,173.69,7.16]
[1717600742213,7.16,173.76,173.7,7.16]
[1717600742383,7.16,173.76,173.65,20.34]
[1717600742584,7.16,173.75,173.69,7.16]
[1717600742782,7.16,173.75,173.65,20.34]
[1717600742783,0.8166447,173.81,173.7,7.16]
[1717600742996,7.16,173.76,173.7,7.16]
[1717600743385,6.2226,173.79,173.7,7.16]
[1717600743587,7.16,173.77,173.71,7.16]
[1717600743802,7.16,173.78,173.71,7.16]
[1717600744109,7.16,173.77,173.65,54.95]
[1717600744287,7.16,173.77,173.7,7.16]
[1717600744611,7.16,173.77,173.71,5.764]
[1717600744612,16.0865,173.77,173.71,5.764]
[1717600744792,7.16,173.74,173.65,20.0]
[1717600744999,7.16,173.73,173.66,7.16]
[1717600745297,16.0865,173.77,173.66,7.16]
[1717600745489,7.16,173.74,173.67,7.16]
[1717600745688,16.0865,173.77,173.67,7.16]
[1717600745906,7.16,173.74,173.67,7.16]
[1717600746118,7.16,173.73,173.62,20.0]
[1717600746311,7.16,173.73,173.67,7.16]
[1717600746634,7.16,173.73,173.67,5.764]
[1717600746929,7.16,173.73,173.67,7.16]
[1717600747084,7.16,173.71,173.62,4.65496903]
[1717600747411,29.2794,173.71,173.7,111.25959554]
[1717600747617,29.2794,173.71,173.61,7.38699256]
[1717600747924,21.6901,173.71,173.7,111.25959554]
[1717600748215,21.6901,173.69,173.68,111.25959554]
[1717600748638,28.8501,173.69,173.57,13.4749]
[1717600748817,22.7332,173.67,173.58,5.764]
[1717600749113,28.8501,173.67,173.66,111.25959554]
[1717600749316,21.6901,173.67,173.62,7.16]
[1717600749699,21.6901,173.67,173.61,7.16]
[1717600749894,21.6901,173.67,173.55,40.374]
[1717600750100,21.6901,173.67,173.56,20.0]
[1717600750298,21.6901,173.67,173.66,111.25959554]
[1717600750512,21.49,173.73,173.57,5.764]
[1717600750513,21.6901,173.71,173.7,111.25959554]
[1717600751043,21.6901,173.71,173.57,40.374]
[1717600751044,17.7032,173.71,173.57,40.374]
[1717600751321,21.6901,173.7,173.69,111.25959554]
[1717600751505,21.6901,173.7,173.58,20.0]
[1717600751682,21.6901,173.7,173.69,111.25959554]
[1717600751887,21.6901,173.7,173.57,20.0]
[1717600752313,21.6901,173.7,173.69,111.25959554]
[1717600753213,21.507,173.68,173.58,5.764]
[1717600753415,21.507,173.66,173.65,111.25959554]
[1717600754492,21.507,173.66,173.53,41.92649232]
[1717600754703,21.507,173.66,173.65,111.25959554]
[1717600755207,23.1885,173.64,173.54,20.0]
[1717600755390,23.1885,173.63,173.53,1.00159232]
[1717600755585,23.1885,173.63,173.62,111.25959554]
[1717600755789,23.1885,173.63,173.5,60.81542116]
[1717600755790,23.1885,173.63,173.5,21.66]
[1717600756006,23.1885,173.62,173.5,21.66]
[1717600756401,21.3707,173.6,173.59,111.25959554]
[1717600756617,21.49,173.62,173.57,111.25959554]
[1717600756932,15.3212,173.58,173.57,111.25959554]
[1717600757117,15.3212,173.58,173.5,21.66]
[1717600757290,21.3377,173.58,173.5,21.66]
[1717600757619,21.6871,173.58,173.55,111.25959554]
[1717600757824,6.5756,173.56,173.5,21.66]
[1717600757996,16.5313,173.53,173.5,21.66]
[1717600758313,0.17,173.58,173.51,111.25959554]
[1717600758314,23.1069,173.52,173.51,111.25959554]
[1717600758517,23.1069,173.52,173.5,21.66]
[1717600758723,21.49,173.59,173.5,21.66]
[1717600758724,6.2719,173.55,173.5,21.66]
[1717600759212,22.1908,173.55,173.54,111.25959554]
[1717600759418,22.1908,173.55,173.41,68.3977]
[1717600759596,22.3819,173.53,173.52,111.25959554]
[1717600759793,22.3819,173.53,173.4,21.49]
[1717600760003,22.3819,173.53,173.52,111.77087784]
[1717600760201,0.17,173.61,173.59,111.77087784]
[1717600760636,23.6211,173.62,173.43,62.3809]
[1717600760801,21.9528,173.6,173.43,68.1449]
[1717600761002,21.9528,173.6,173.59,111.77087784]
[1717600761207,21.9528,173.6,173.44,0.34]
[1717600761417,21.9528,173.6,173.44,60.714]
[1717600761621,21.9528,173.6,173.47,34.61]
[1717600761829,21.9528,173.6,173.59,111.77087784]
[1717600762238,21.9528,173.6,173.48,0.34]
[1717600762419,21.9528,173.6,173.48,20.34]
[1717600762613,21.9528,173.6,173.59,111.77087784]
[1717600762801,21.9528,173.6,173.48,20.34]
[1717600763021,21.9528,173.6,173.59,111.77087784]
[1717600763223,21.9528,173.6,173.48,20.34]
[1717600763524,21.9528,173.6,173.59,111.77087784]
[1717600763729,21.9528,173.6,173.48,20.34]
[1717600764103,21.3024,173.58,173.48,0.34]
[1717600764300,15.152,173.57,173.47,20.0]
[1717600764615,21.3024,173.57,173.56,111.77087784]
[1717600765006,15.152,173.62,173.47,41.49]
[1717600765336,15.152,173.62,173.61,111.77087784]
[1717600765702,22.6752,173.65,173.64,111.77087784]
[1717600765901,22.6752,173.65,173.51,6.5513]
[1717600766101,22.6752,173.65,173.52,20.17]
[1717600766413,22.6752,173.65,173.53,21.66]
[1717600766724,6.1699,173.65,173.64,111.77087784]
[1717600766930,21.7287,173.69,173.54,54.78]
[1717600767232,21.7287,173.69,173.55,0.17]
[1717600767408,21.7287,173.69,173.56,21.49]
[1717600767607,21.7287,173.69,173.68,111.77087784]
[1717600767807,6.5735,173.69,173.68,111.77087784]
[1717600768126,6.5735,173.69,173.57,0.34]
[1717600768432,6.5735,173.69,173.57,20.34]
[1717600768814,22.3874,173.69,173.68,111.77087784]
[1717600769511,22.3874,173.69,173.57,20.34]
[1717600769905,22.3874,173.69,173.68,111.77087784]
[1717600770929,22.3874,173.69,173.57,20.34]
[1717600770930,21.4266,173.68,173.57,20.34]
[1717600771228,2.1305,173.67,173.52,21.49]
[1717600771417,2.1305,173.67,173.53,20.0]
[1717600771619,21.4266,173.68,173.53,20.0]
[1717600771816,2.1306,173.66,173.53,20.0]
[1717600772005,21.4266,173.68,173.53,20.0]
[1717600772614,21.4266,173.68,173.53,54.61]
[1717600772818,23.5569,173.68,173.53,54.61]
[1717600773240,23.5569,173.68,173.54,0.17]
[1717600773449,23.5569,173.68,173.54,0.34]
[1717600773625,23.557,173.68,173.54,0.34]
[1717600773812,21.4266,173.68,173.54,0.34]
[1717600774333,21.4266,173.68,173.55,21.49]
[1717600774547,21.4266,173.68,173.56,20.34]
[1717600775842,6.2021,173.68,173.58,21.49]
[1717600776017,6.2021,173.68,173.59,20.34]
[1717600776227,6.2021,173.68,173.59,0.34]
[1717600776533,6.2021,173.68,173.59,20.34]
[1717600777110,22.5099,173.72,173.59,20.34]
[1717600778316,24.6397,173.72,173.59,20.34]
[1717600778524,22.5099,173.72,173.59,20.34]
[1717600778733,24.6397,173.72,173.59,20.34]
[1717600778917,22.5099,173.72,173.59,20.34]
[1717600779127,24.6397,173.72,173.59,20.34]
[1717600779548,22.5099,173.72,173.59,20.34]
[1717600780041,24.6398,173.72,173.59,0.34]
[1717600780226,24.6398,173.72,173.6,0.17]
[1717600780407,24.6398,173.72,173.58,0.34]
[1717600780610,22.5099,173.72,173.58,0.34]
[1717600780809,24.6397,173.72,173.58,0.34]
[1717600781242,22.5099,173.72,173.58,0.34]
[1717600781443,24.6397,173.72,173.58,0.34]
[1717600781813,22.5099,173.72,173.58,0.34]
[1717600783417,24.6397,173.72,173.58,0.34]
[1717600784517,22.5099,173.72,173.71,98.32842739]
[1717600784918,22.5099,173.72,173.58,0.34]
[1717600785235,22.5099,173.72,173.71,98.32842739]
[1717600785437,22.0699,173.7,173.57,47.254]
[1717600785631,22.0699,173.69,173.57,47.254]
[1717600785835,22.0699,173.68,173.57,20.0]
[1717600786020,22.0699,173.68,173.67,98.32842739]
[1717600786213,22.0699,173.68,173.55,20.0]
[1717600786413,21.4512,173.67,173.55,20.0]
[1717600786648,21.4512,173.67,173.66,98.32842739]
[1717600786815,21.4512,173.67,173.54,39.14404036]
[1717600787016,23.5816,173.67,173.54,39.14404036]
[1717600787216,6.3136,173.66,173.54,4.53404036]
[1717600787438,21.4512,173.64,173.51,33.8053]
[1717600787828,21.4512,173.64,173.63,98.32842739]
[1717600788159,21.4512,173.64,173.51,16.91660005]
[1717600788318,21.4512,173.64,173.63,98.32842739]
[1717600788519,21.4512,173.64,173.51,38.40660005]
[1717600788828,21.4512,173.64,173.52,20.34]
[1717600789140,21.4512,173.64,173.63,98.32842739]
[1717600789440,21.4909,173.63,173.62,98.32842739]
[1717600789746,4.2606,173.69,173.51,21.49]
[1717600789747,21.4909,173.61,173.51,21.49]
[1717600790046,21.4909,173.61,173.58,98.32842739]
[1717600790047,5.8119,173.59,173.58,98.32842739]
[1717600790252,5.8119,173.59,173.46,21.4909]
[1717600790542,22.0442,173.59,173.58,98.32842739]
[1717600790751,22.0442,173.59,173.46,27.254]
[1717600791111,22.0442,173.59,173.58,98.32842739]
[1717600791938,21.826,173.63,173.49,61.864]
[1717600792138,21.826,173.63,173.62,98.32842739]
[1717600792324,21.826,173.63,173.52,27.254]
[1717600792525,21.826,173.63,173.53,0.34]
[1717600792724,21.826,173.63,173.62,98.32842739]
[1717600793117,21.826,173.63,173.53,0.34]
[1717600793516,21.826,173.63,173.62,98.32842739]
[1717600794317,21.826,173.63,173.53,0.34]
[1717600794522,21.826,173.63,173.62,98.32842739]
[1717600794941,21.826,173.63,173.53,0.34]
[1717600795141,21.826,173.63,173.62,98.32842739]
[1717600795327,21.9759,173.62,173.61,98.32842739]
[1717600795941,22.5421,173.61,173.5,20.0]
[1717600796119,22.5421,173.61,173.51,30.34]
[1717600796435,22.5421,173.61,173.52,20.0]
[1717600797425,6.6369,173.65,173.53,0.34]
[1717600798527,6.6369,173.65,173.53,30.34]
[1717600802840,8.7677,173.65,173.53,30.34]
[1717600803050,6.6369,173.65,173.53,30.17]
[1717600803245,8.7676,173.65,173.53,30.0]
[1717600803552,0.34,173.64,173.53,30.0]
[1717600803753,6.6369,173.65,173.53,30.0]
[1717600804345,6.6369,173.65,173.54,41.49]
[1717600804742,6.6369,173.65,173.55,0.34]
[1717600806350,6.6369,173.65,173.55,30.34]
[1717600808622,6.6369,173.65,173.55,57.594]
[1717600808822,6.1388,173.69,173.56,20.0]
[1717600809025,6.1388,173.69,173.57,36.104]
[1717600809252,6.1388,173.69,173.58,20.0]
[1717600809549,6.1388,173.69,173.59,0.34]
[1717600810048,6.1388,173.69,173.59,30.34]
[1717600811855,6.1388,173.69,173.59,36.104]